fUSD/lending_fUSD_20251002
["ID","MTS","AMOUNT","RATE_DAILY","PERIOD"]
[388823687,1759392656455,-102.70518478,0.00021917,2]
[388823688,1759392656467,-592.89481522,0.00021917,2]
[388823689,1759392656476,-500.0,0.00021917,2]
[388823690,1759392656486,-1015.46060302,0.00021917,2]
[388823691,1759392656495,-1265.21,0.00021917,2]
[388823692,1759392656504,-809.79452762,0.00021917,2]
[388823693,1759392656516,-845.02547238,0.00021917,2]
[388823694,1759392656526,-1017.66,0.00021917,2]
[388823695,1759392656535,-151.0,0.00021917,2]
[388823696,1759392656545,-500.0,0.00021917,2]
[388823697,1759392656554,-151.0,0.00021917,2]
[388823698,1759392656563,-151.0,0.00021917,2]
[388823699,1759392656572,-151.0,0.00021917,2]
[388823700,1759392656582,-151.0,0.00021917,2]
[388823701,1759392656591,-500.0,0.00021917,2]
[388823702,1759392656600,-408.31118601,0.00021917,2]
[388823703,1759392656612,-95.75463273,0.00021917,2]
[388823704,1759392656622,-504.69198253,0.00021917,2]
[388823705,1759392656631,-1209.96,0.00021917,2]
[388823706,1759392656641,-501.82288306,0.00021917,2]
[388823707,1759392656650,-501.49445332,0.00021917,2]
[388823708,1759392656661,-1619.13,0.00021917,2]
[388823709,1759392656670,-500.0,0.00021917,2]
[388823710,1759392656679,-500.0,0.00021917,2]
[388823711,1759392656688,-551.62410788,0.00021917,2]
[388823712,1759392656700,-302.0,0.00021917,2]
[388823713,1759392656710,-314.43560951,0.00021917,2]
[388823714,1759392656722,-332.4,0.00021917,2]
[388823715,1759392656733,-459.62,0.00021917,2]
[388823716,1759392656756,-71.08028261,0.00021917,2]
[388823717,1759392656765,-500.0,0.00021917,2]
[388823718,1759392656774,-503.24169579,0.00021917,2]
[388823719,1759392656783,-501.02993707,0.00021917,2]
[388823720,1759392656793,-5405.12008453,0.00021917,2]
[388823721,1759392656805,-298.27991547,0.00021917,2]
[388823722,1759392656814,-8.16908453,0.00021917,2]
[388823723,1759392656825,-348.87976258,0.00021917,2]
[388823724,1759392656846,-149.75712669,0.00021917,2]
[388823725,1759392656856,-593.73,0.00021917,2]
[388823726,1759392656865,-502.33710238,0.00021917,2]
[388823727,1759392656874,-508.52711987,0.00021917,2]
[388823728,1759392656883,-510.50596749,0.00021917,2]
[388823729,1759392656893,-500.81914234,0.00021917,2]
[388823730,1759392656902,-501.61843417,0.00021917,2]
[388823731,1759392656911,-501.1561121,0.00021917,2]
[388823732,1759392656920,-500.0,0.00021917,2]
[388823733,1759392656929,-506.83714948,0.00021917,2]
[388823734,1759392656938,-151.0,0.00021917,2]
[388823735,1759392656948,-500.0,0.00021917,2]
[388823736,1759392656957,-151.0,0.00021917,2]
[388823737,1759392656967,-167.987319,0.00021917,2]
[388823738,1759392656976,-718.03,0.00021917,2]
[388823739,1759392656986,-1997.25,0.00021917,2]
[388823740,1759392656995,-500.0,0.00021917,2]
[388823741,1759392657004,-17.09764855,0.00021917,2]
[388823742,1759392657016,-1142.09325268,0.00021917,2]
[388823743,1759392657105,-771.33909877,0.00021917,2]
[388823744,1759392657115,-4094.89,0.00021917,2]
[388823745,1759392657124,-500.0,0.00021917,2]
[388823746,1759392657134,-500.0,0.00021917,2]
[388823747,1759392657143,-524.66766502,0.00021917,2]
[388823748,1759392657153,-2476.27,0.00021917,2]
[388823749,1759392657162,-500.0,0.00021917,2]
[388823750,1759392657172,-500.0,0.00021917,2]
[388823751,1759392657181,-500.0,0.00021917,2]
[388823752,1759392657191,-500.0,0.00021917,2]
[388823753,1759392657201,-509.45562951,0.00021917,2]
[388823754,1759392657210,-500.0,0.00021917,2]
[388823755,1759392657219,-501.40728546,0.00021917,2]
[388823756,1759392657233,-509.77748596,0.00021917,2]
[388823757,1759392657242,-2338.61,0.00021917,2]
[388823758,1759392657252,-2671.5,0.00021917,2]
[388823759,1759392657261,-792.32,0.00021917,2]
[388823760,1759392657270,-2236.0,0.00021917,2]
[388823761,1759392657282,-500.0,0.00021917,2]
[388823762,1759392657291,-151.0,0.00021917,2]
[388823763,1759392657302,-500.0,0.00021917,2]
[388823764,1759392657311,-500.0,0.00021917,2]
[388823765,1759392657320,-151.0,0.00021917,2]
[388823766,1759392657329,-151.0,0.00021917,2]
[388823767,1759392657337,-151.0,0.00021917,2]
[388823768,1759392657347,-151.0,0.00021917,2]
[388823769,1759392657356,-207.095638,0.00021917,2]
[388823770,1759392657366,-677.59,0.00021917,2]
[388823771,1759392657374,-500.0,0.00021917,2]
[388823772,1759392657382,-501.63073329,0.00021917,2]
[388823773,1759392657391,-500.0,0.00021917,2]
[388823774,1759392657400,-505.52018859,0.00021917,2]
[388823775,1759392657409,-500.0,0.00021917,2]
[388823776,1759392657418,-500.0,0.00021917,2]
[388823777,1759392657427,-1029.71,0.00021917,2]
[388823778,1759392657436,-500.0,0.00021917,2]
[388823779,1759392657445,-1029.71,0.00021917,2]
[388823780,1759392657455,-1029.71,0.00021917,2]
[388823781,1759392657464,-1029.71,0.00021917,2]
[388823782,1759392657473,-1029.71,0.00021917,2]
[388823783,1759392657483,-1029.71,0.00021917,2]
[388823784,1759392657491,-500.0,0.00021917,2]
[388823785,1759392657501,-1029.71,0.00021917,2]
[388823786,1759392657509,-1029.71,0.00021917,2]
[388823787,1759392657518,-500.8841002,0.00021917,2]
[388823788,1759392657528,-500.0,0.00021917,2]
[388823789,1759392657538,-1029.71,0.00021917,2]
[388823790,1759392657547,-1029.71,0.00021917,2]
[388823791,1759392657557,-1029.71,0.00021917,2]
[388823792,1759392657567,-1105.73,0.00021917,2]
[388823793,1759392657576,-1029.71,0.00021917,2]
[388823794,1759392657585,-1029.71,0.00021917,2]
[388823795,1759392657594,-915.890945,0.00021917,2]
[388823796,1759392657607,-113.819055,0.00021917,2]
[388823797,1759392657617,-1029.71,0.00021917,2]
[388823798,1759392657626,-1029.71,0.00021917,2]
[388823799,1759392657635,-500.0,0.00021917,2]
[388823800,1759392657644,-1029.71,0.00021917,2]
[388823801,1759392657654,-500.0,0.00021917,2]
[388823802,1759392657664,-1029.71,0.00021917,2]
[388823803,1759392657672,-500.0,0.00021917,2]
[388823804,1759392657682,-1029.71,0.00021917,2]
[388823805,1759392657691,-2166.68,0.00021917,2]
[388823806,1759392657700,-500.0,0.00021917,2]
[388823807,1759392657709,-1029.71,0.00021917,2]
[388823808,1759392657718,-627.51,0.00021917,2]
[388823809,1759392657727,-1029.71,0.00021917,2]
[388823810,1759392657736,-500.0,0.00021917,2]
[388823811,1759392657746,-1239.92,0.00021917,2]
[388823812,1759392657755,-500.0,0.00021917,2]
[388823813,1759392657762,-515.89530407,0.00021917,2]
[388823814,1759392657772,-1029.71,0.00021917,2]
[388823815,1759392657781,-188.88306464,0.00021917,2]
[388823816,1759392657792,-840.82693536,0.00021917,2]
[388823817,1759392657801,-500.54245892,0.00021917,2]
[388823818,1759392657810,-1029.76669201,0.00021917,2]
[388823819,1759392657820,-520.0050006,0.00021917,2]
[388823820,1759392657828,-500.0,0.00021917,2]
[388823821,1759392657838,-2742.23,0.00021917,2]
[388823822,1759392657846,-1256.6532694,0.00021917,2]
[388823995,1759392696212,1058.3455,0.0001657,2]
[388824001,1759392771561,-168.0,0.00016628,2]
[388824008,1759392981654,-150.341,0.00016628,2]
[388824009,1759392982133,-70.504,0.00016628,2]
[388824010,1759393000714,81.016,0.00016545,2]
[388824011,1759393000739,122.4649618,0.00016545,2]
[388824014,1759393067426,-651.05,0.000178,7]
[388824026,1759393562078,2754.1008348,8e-05,2]
[388824027,1759393694255,-550.0,0.00016998,2]
[388824028,1759393694669,-1200.0,0.00016998,2]
[388824029,1759393694695,-300.0,0.00016998,2]
[388824030,1759393694720,-1000.0,0.00016999,2]
[388824031,1759393694745,-300.0,0.00016999,2]
[388824032,1759393694770,-500.0,0.00016999,2]
[388824033,1759393694794,-426.59924052,0.00016999,2]
[388824034,1759393694820,-500.0,0.00016999,2]
[388824035,1759393694847,-273.02909529,0.00016999,2]
[388824036,1759393694872,-500.0,0.00016999,2]
[388824037,1759393694898,-545.34652142,0.00016999,2]
[388824038,1759393694924,-500.0,0.00016999,2]
[388824039,1759393694950,-500.0,0.00016999,2]
[388824040,1759393694976,-279.88872796,0.00016999,2]
[388824041,1759393695004,-500.0,0.00016999,2]
[388824042,1759393695035,-500.0,0.00016999,2]
[388824043,1759393695071,-500.0,0.00016999,2]
[388824044,1759393695100,-367.37872577,0.00016999,2]
[388824045,1759393695135,-500.0,0.00016999,2]
[388824046,1759393695162,-70257.75768904,0.00017,2]
[388824047,1759393722504,878.17901173,0.00015,2]
[388824058,1759393831752,-768.88336617,0.000169,2]
[388824059,1759393831774,-184.98274165,0.00016959,2]
[388824060,1759393831783,-151.0,0.00016997,2]
[388824061,1759393831793,-300.0,0.00016998,2]
[388824062,1759393831804,-276.0,0.00016998,2]
[388824063,1759393831813,-1200.0,0.00016998,2]
[388824064,1759393831823,-300.0,0.00016999,2]
[388824065,1759393831833,-666.0,0.00016999,2]
[388824066,1759393831843,-550.0,0.00016999,2]
[388824067,1759393831852,-355.14083557,0.00016999,2]
[388824068,1759393831862,-424.99601908,0.00016999,2]
[388824069,1759393831872,-300.0,0.00016999,2]
[388824070,1759393831881,-2500.0,0.00016999,2]
[388824071,1759393831891,-195.0,0.00016999,2]
[388824072,1759393831901,-500.0,0.00017,2]
[388824073,1759393831912,-10285.96487599,0.00017,2]
[388824074,1759393831924,-470.87842839,0.00017,2]
[388824075,1759393831935,-1000.0,0.00017,2]
[388824076,1759393831947,-52356.443966,0.00017,2]
[388824077,1759393831958,-556.8968615,0.00017,2]
[388824078,1759393832050,-3927.96302412,0.00017,2]
[388824089,1759393837484,-2732.32143356,0.00017,2]
[388824090,1759393837497,-6847.33260583,0.00017,2]
[388824091,1759393837539,-363.50002513,0.00017,2]
[388824092,1759393837550,-663.47545422,0.00017,2]
[388824096,1759393837843,-2910.73224833,0.00017,2]
[388824098,1759393837855,-1990.0,0.00017,2]
[388824101,1759393837875,-393.69097478,0.00017,2]
[388824104,1759393839522,-178.88,0.0001699,2]
[388824105,1759393839534,-178.88,0.0001699,2]
[388824106,1759393839543,-3496.49656115,0.00017,2]
[388824107,1759393839577,-4475.06374946,0.00017,2]
[388824108,1759393839690,-1294.84233385,0.00017,2]
[388824109,1759393839704,-110269.36488241,0.00017,2]
[388824117,1759393842596,-2016.29925567,0.00017,2]
[388824118,1759393842809,-368687.19095561,0.00017,2]
[388824119,1759393842916,-1018.57237575,0.00017,2]
[388824129,1759393845652,-3284.21766365,0.00017,2]
[388824130,1759393845664,-5852.46787467,0.00017,2]
[388824131,1759393845677,-22212.96798426,0.00017,2]
[388824132,1759393845688,-302.0,0.00017,2]
[388824133,1759393845714,-427.35164533,0.00017,2]
[388824134,1759393845725,-5766.5,0.00017,2]
[388824135,1759393845736,-446.32051968,0.00017,2]
[388824136,1759393845759,-1423.99545267,0.00017,2]
[388824137,1759393845788,-348.04126312,0.00017,2]
[388824138,1759393845822,-560175.1003159,0.00017,2]
[388824139,1759393845831,-310.68639139,0.0001706,2]
[388824140,1759393845841,-190.70057768,0.000173,2]
[388824141,1759393845850,-304.93096597,0.000174,2]
[388824142,1759393845859,-613.40608275,0.000175,2]
[388824143,1759393845870,-1787.75250574,0.000175,2]
[388824144,1759393845880,-532.42554377,0.0001759,2]
[388824145,1759393845890,-14536.66064483,0.000176,2]
[388824146,1759393845899,-1719.07,0.000177,2]
[388824147,1759393845909,-472.48,0.000178,2]
[388824148,1759393845919,-2000.0,0.000178,2]
[388824149,1759393845929,-585.94,0.000178,7]
[388824150,1759393845939,-1787.75250572,0.0001801,2]
[388824151,1759393845948,-190.7005776,0.00018015,2]
[388824152,1759393845958,-14536.6606448,0.00018099,2]
[388824153,1759393845967,-304.93096592,0.00018224,2]
[388824154,1759393845977,-1787.75250572,0.0001852,2]
[388824155,1759393845987,-1200.0,0.00018566,2]
[388824156,1759393845996,-609.92938689,0.00018594,2]
[388824157,1759393846006,-14536.6606448,0.00018598,2]
[388824158,1759393846016,-1680.0,0.00018658,2]
[388824159,1759393846025,-250.0,0.00018699,2]
[388824160,1759393846035,-300.0,0.00018699,2]
[388824161,1759393846045,-2500.0,0.00018699,2]
[388824162,1759393846054,-195.0,0.00018699,2]
[388824163,1759393846063,-500.0,0.00018699,2]
[388824164,1759393846074,-190.7005776,0.0001873,2]
[388824165,1759393846083,-1787.75250572,0.0001903,2]
[388824166,1759393846092,-184.98274165,0.00019035,2]
[388824167,1759393846102,-304.93096592,0.00019048,2]
[388824168,1759393846111,-14536.6606448,0.00019097,2]
[388824169,1759393846120,-151.0,0.00019178,2]
[388824170,1759393846130,-167.47,0.0001931,2]
[388824171,1759393846139,-190.7005776,0.00019445,2]
[388824172,1759393846149,-1000.0,0.00019458,2]
[388824173,1759393846159,-1787.75250572,0.0001954,2]
[388824174,1759393846168,-2000.0,0.0001958,2]
[388824175,1759393846178,-14536.6606448,0.00019596,2]
[388824176,1759393846187,-156.587,0.00019726,2]
[388824177,1759393846197,-304.93096592,0.00019872,2]
[388824178,1759393846206,-880.31589988,0.0002,2]
[388824179,1759393846216,-1000.0,0.0002,2]
[388824180,1759393846226,-1000.0,0.0002,2]
[388824181,1759393846235,-9169.88829343,0.0002001,2]
[388824182,1759393846245,-5057.32766314,0.0002001,2]
[388824183,1759393846254,-1787.75250572,0.00020051,2]
[388824184,1759393846264,-14536.6606448,0.00020095,2]
[388824185,1759393846274,-4270.82,0.00020108,2]
[388824186,1759393846283,-190.7005776,0.0002016,2]
[388824187,1759393846293,-880.31589988,0.000202,2]
[388824188,1759393846302,-2500.0,0.00020236,2]
[388824189,1759393846314,-1700.31,0.00020239,2]
[388824190,1759393846323,-2500.0,0.00020314,2]
[388824191,1759393846332,-666.0,0.00020324,3]
[388824192,1759393846341,-880.31589988,0.000204,2]
[388824193,1759393846351,-2007.8374723,0.00020468,2]
[388824194,1759393846360,-720.0,0.0002048,2]
[388824195,1759393846369,-534.34,0.00020519,2]
[388824196,1759393846379,-1787.75250572,0.00020561,2]
[388824197,1759393846388,-14536.6606448,0.00020594,2]
[388824198,1759393846397,-880.31589988,0.000206,2]
[388824199,1759393846406,-4231.0,0.00020617,2]
[388824200,1759393846416,-2447.97709491,0.00020672,2]
[388824201,1759393846425,-211.19972172,0.00020672,2]
[388824202,1759393846434,-270.24,0.00020688,2]
[388824203,1759393846444,-304.93096592,0.00020696,2]
[388824204,1759393846453,-500.0,0.00020731,2]
[388824205,1759393846463,-880.31589988,0.000208,2]
[388824206,1759393846472,-190.7005776,0.00020875,2]
[388824207,1759393846482,-2575.95,0.000209,2]
[388824208,1759393846491,-2369.07,0.00020997,2]
[388824209,1759393846500,-1787.75250572,0.00021071,2]
[388824210,1759393846509,-14536.6606448,0.00021093,2]
[388824211,1759393846518,-2575.95,0.000211,2]
[388824212,1759393846527,-184.98274165,0.00021111,2]
[388824213,1759393846536,-623.58710448,0.00021182,2]
[388824214,1759393846546,-151.0,0.00021182,2]
[388824215,1759393846555,-151.0,0.00021182,2]
[388824216,1759393846564,-151.0,0.00021182,2]
[388824217,1759393846573,-500.0,0.00021182,2]
[388824218,1759393846583,-151.0,0.00021182,2]
[388824219,1759393846592,-500.0,0.00021182,2]
[388824220,1759393846602,-151.0,0.00021182,2]
[388824221,1759393846611,-151.0,0.00021182,2]
[388824222,1759393846620,-500.0,0.00021182,2]
[388824223,1759393846634,-151.0,0.00021182,2]
[388824224,1759393846644,-151.0,0.00021182,2]
[388824225,1759393846653,-151.0,0.00021182,2]
[388824226,1759393846662,-151.0,0.00021182,2]
[388824227,1759393846674,-151.0,0.00021182,2]
[388824228,1759393846683,-151.0,0.00021182,2]
[388824229,1759393846692,-151.0,0.00021182,2]
[388824230,1759393846703,-151.0,0.00021182,2]
[388824231,1759393846712,-151.0,0.00021182,2]
[388824232,1759393846721,-151.0,0.00021182,2]
[388824233,1759393846731,-151.0,0.00021182,2]
[388824234,1759393846740,-151.0,0.00021182,2]
[388824235,1759393846749,-151.0,0.00021182,2]
[388824236,1759393846759,-151.0,0.00021182,2]
[388824237,1759393846768,-500.0,0.00021182,2]
[388824238,1759393846777,-500.0,0.00021182,2]
[388824239,1759393846787,-500.0,0.00021182,2]
[388824240,1759393846796,-500.0,0.00021182,2]
[388824241,1759393846805,-500.0,0.00021182,2]
[388824242,1759393846815,-500.0,0.00021182,2]
[388824243,1759393846824,-151.0,0.00021182,2]
[388824244,1759393846833,-400.58,0.00021182,2]
[388824245,1759393846842,-426.14034373,0.00021193,2]
[388824246,1759393846851,-8594.47525215,0.00021194,2]
[388824247,1759393846861,-5000.0,0.00021194,2]
[388824248,1759393846870,-150.0,0.000212,2]
[388824249,1759393846880,-150.13,0.00021409,4]
[388824250,1759393846888,-400.58,0.00021456,2]
[388824251,1759393846897,-150.18,0.00021459,4]
[388824252,1759393846907,-1380.16233771,0.000215,2]
[388824253,1759393846916,-304.93096592,0.0002152,2]
[388824254,1759393846925,-150.44,0.00021525,4]
[388824255,1759393846935,-576.99259965,0.00021532,2]
[388824256,1759393846944,-289.88249447,0.00021538,2]
[388824257,1759393846953,-469.566517,0.00021545,2]
[388824258,1759393846963,-469.566517,0.00021561,2]
[388824259,1759393846972,-1787.75250572,0.00021581,2]
[388824260,1759393846981,-289.88249447,0.00021584,2]
[388824261,1759393846990,-190.7005776,0.0002159,2]
[388824262,1759393846999,-14536.6606448,0.00021592,2]
[388824263,1759393847009,-2000.0,0.000216,2]
[388824264,1759393847018,-1000.0,0.000216,2]
[388824265,1759393847027,-469.566517,0.00021613,2]
[388824266,1759393847036,-775.281,0.00021618,2]
[388824267,1759393847045,-162.921,0.00021618,2]
[388824268,1759393847054,-576.99259965,0.0002165,2]
[388824269,1759393847063,-289.88249447,0.00021651,2]
[388824270,1759393847073,-289.88249447,0.00021652,2]
[388824271,1759393847083,-469.566517,0.00021665,2]
[388824272,1759393847092,-523.51,0.00021667,2]
[388824273,1759393847101,-534.91,0.00021667,2]
[388824274,1759393847110,-529.46,0.00021668,2]
[388824275,1759393847119,-150.0,0.00021669,2]
[388824276,1759393847128,-576.99259965,0.0002167,2]
[388824277,1759393847137,-289.88249447,0.00021674,2]
[388824278,1759393847146,-576.99259965,0.00021679,2]
[388824279,1759393847155,-576.99259965,0.0002168,2]
[388824280,1759393847164,-369.61772848,0.00021684,2]
[388824281,1759393847174,-523.14,0.00021691,2]
[388824282,1759393847183,-469.566517,0.00021692,2]
[388824283,1759393847192,-306.92278,0.000217,2]
[388824284,1759393847201,-1000.0,0.000217,2]
[388824285,1759393847211,-515.4529,0.00021717,2]
[388824286,1759393847220,-313.9361821,0.00021726,2]
[388824287,1759393847229,-158.38744319,0.00021726,2]
[388824288,1759393847238,-400.58,0.0002173,2]
[388824289,1759393847247,-1000.0,0.00021734,2]
[388824290,1759393847256,-2575.95,0.000218,2]
[388824291,1759393847267,-151.0,0.00021814,2]
[388824292,1759393847276,-150.0,0.00021816,2]
[388824293,1759393847285,-500.0,0.00021816,2]
[388824294,1759393847295,-500.0,0.00021816,2]
[388824295,1759393847304,-150.0,0.00021816,2]
[388824296,1759393847314,-150.0,0.00021816,2]
[388824297,1759393847323,-250.0,0.00021816,2]
[388824298,1759393847332,-150.0,0.00021816,2]
[388824299,1759393847342,-437.0,0.00021816,2]
[388824300,1759393847351,-151.19084264,0.00021816,2]
[388824301,1759393847360,-150.0,0.00021816,2]
[388824302,1759393847370,-500.0,0.00021816,2]
[388824303,1759393847379,-245.2173196,0.00021816,2]
[388824304,1759393847388,-90288.8421,0.00021817,2]
[388824305,1759393847397,-5000.0,0.00021817,2]
[388824306,1759393847407,-151.0,0.00021817,2]
[388824307,1759393847416,-224.782791,0.00021817,2]
[388824308,1759393847424,-151.0,0.00021817,2]
[388824309,1759393847434,-151.0,0.00021817,2]
[388824310,1759393847443,-151.0,0.00021817,2]
[388824311,1759393847452,-151.0,0.00021817,2]
[388824312,1759393847461,-151.0,0.00021817,2]
[388824313,1759393847470,-151.0,0.00021817,2]
[388824314,1759393847479,-300.272164,0.00021817,2]
[388824315,1759393847488,-151.0,0.00021817,2]
[388824316,1759393847498,-151.0,0.00021817,2]
[388824317,1759393847507,-151.0,0.00021817,2]
[388824318,1759393847515,-151.0,0.00021817,2]
[388824319,1759393847525,-151.0,0.00021817,2]
[388824320,1759393847534,-289.3371632,0.00021817,2]
[388824321,1759393847543,-151.0,0.00021817,2]
[388824322,1759393847552,-151.0,0.00021817,2]
[388824323,1759393847562,-157.771584,0.00021817,2]
[388824324,1759393847571,-151.0,0.00021817,2]
[388824325,1759393847581,-151.0,0.00021817,2]
[388824326,1759393847590,-151.0,0.00021817,2]
[388824327,1759393847599,-151.0,0.00021817,2]
[388824328,1759393847608,-151.0,0.00021817,2]
[388824329,1759393847617,-194.1778159,0.00021817,2]
[388824330,1759393847630,-151.0,0.00021817,2]
[388824331,1759393847639,-179.118472,0.00021817,2]
[388824332,1759393847648,-151.0,0.00021817,2]
[388824333,1759393847657,-151.0,0.00021817,2]
[388824334,1759393847667,-1000.0,0.00021849,2]
[388824335,1759393847677,-152.54046625,0.00021868,2]
[388824336,1759393847686,-1000.0,0.00021868,2]
[388824337,1759393847696,-400.0,0.0002187,2]
[388824338,1759393847705,-601.54981781,0.0002187,2]
[388824339,1759393847714,-168.0,0.0002189,2]
[388824340,1759393847723,-1557.1108744,0.00021896,2]
[388824341,1759393847733,-169.1,0.000219,6]
[388824342,1759393847742,-151.0,0.00021914,2]
[388824343,1759393847751,-6115.74192721,0.00021916,2]
[388824344,1759393847760,-572.87441547,0.00021916,2]
[388824345,1759393847770,-151.4426316,0.00021916,2]
[388824346,1759393847779,-1000.0,0.00021916,2]
[388824347,1759393847788,-300.0,0.00021916,2]
[388824348,1759393847797,-389.85795326,0.00021916,2]
[388824349,1759393847893,-470.2339042,0.00021916,2]
[388824350,1759393847904,-799.0,0.00021917,2]
[388824351,1759393847914,-242268.52387835,0.00021917,2]
[388824352,1759393847923,-518.17,0.00021917,2]
[388824353,1759393847933,-6476.016438,0.00021917,2]
[388824354,1759393847943,-590.74,0.00021917,2]
[388824355,1759393847951,-500.0,0.00021917,2]
[388824356,1759393847960,-500.0,0.00021917,2]
[388824357,1759393847970,-500.0,0.00021917,2]
[388824358,1759393847980,-500.0,0.00021917,2]
[388824359,1759393847990,-501.85440338,0.00021917,2]
[388824360,1759393847999,-500.0,0.00021917,2]
[388824361,1759393848009,-545.37,0.00021917,2]
[388824362,1759393848018,-500.0,0.00021917,2]
[388824363,1759393848027,-699.04,0.00021917,2]
[388824364,1759393848035,-500.0,0.00021917,2]
[388824365,1759393848045,-1264.64,0.00021917,2]
[388824366,1759393848054,-786.69,0.00021917,2]
[388824367,1759393848063,-500.0,0.00021917,2]
[388824368,1759393848072,-500.0,0.00021917,2]
[388824369,1759393848081,-500.0,0.00021917,2]
[388824370,1759393848090,-500.0,0.00021917,2]
[388824371,1759393848099,-500.0,0.00021917,2]
[388824372,1759393848109,-627.92,0.00021917,2]
[388824373,1759393848118,-500.0,0.00021917,2]
[388824374,1759393848127,-500.0,0.00021917,2]
[388824375,1759393848136,-627.85,0.00021917,2]
[388824376,1759393848145,-506.63,0.00021917,2]
[388824377,1759393848154,-500.0,0.00021917,2]
[388824378,1759393848163,-500.0,0.00021917,2]
[388824379,1759393848172,-1697.75,0.00021917,2]
[388824380,1759393848181,-500.91847598,0.00021917,2]
[388824381,1759393848190,-308.16464632,0.00021917,2]
[388824382,1759393848199,-501.97704311,0.00021917,2]
[388824383,1759393848208,-185.48786721,0.00021917,2]
[388824384,1759393848217,-689.95,0.00021917,2]
[388824385,1759393848226,-500.0,0.00021917,2]
[388824386,1759393848235,-500.0,0.00021917,2]
[388824387,1759393848244,-501.43468294,0.00021917,2]
[388824388,1759393848252,-500.0,0.00021917,2]
[388824389,1759393848261,-501.44982343,0.00021917,2]
[388824390,1759393848270,-500.0,0.00021917,2]
[388824391,1759393848279,-530.7,0.00021917,2]
[388824392,1759393848288,-500.0,0.00021917,2]
[388824393,1759393848298,-43386.1695248,0.00021917,2]
[388824394,1759393848308,-571.91,0.00021917,2]
[388824395,1759393848318,-501.33239973,0.00021917,2]
[388824396,1759393848328,-500.67008998,0.00021917,2]
[388824397,1759393848338,-500.0,0.00021917,2]
[388824398,1759393848347,-500.0,0.00021917,2]
[388824399,1759393848356,-500.0,0.00021917,2]
[388824400,1759393848365,-500.0,0.00021917,2]
[388824401,1759393848374,-500.0,0.00021917,2]
[388824402,1759393848383,-500.0,0.00021917,2]
[388824403,1759393848392,-407.83790835,0.00021917,2]
[388824404,1759393848401,-500.0,0.00021917,2]
[388824405,1759393848410,-511.71383619,0.00021917,2]
[388824406,1759393848420,-500.0,0.00021917,2]
[388824407,1759393848428,-500.0,0.00021917,2]
[388824408,1759393848437,-500.0,0.00021917,2]
[388824409,1759393848446,-500.0,0.00021917,2]
[388824410,1759393848455,-500.0,0.00021917,2]
[388824411,1759393848464,-516.01132397,0.00021917,2]
[388824412,1759393848473,-500.0,0.00021917,2]
[388824413,1759393848481,-500.0,0.00021917,2]
[388824414,1759393848491,-500.0,0.00021917,2]
[388824415,1759393848500,-500.0,0.00021917,2]
[388824416,1759393848509,-515.39621194,0.00021917,2]
[388824417,1759393848519,-1223.11,0.00021917,2]
[388824418,1759393848528,-500.0,0.00021917,2]
[388824419,1759393848537,-776.35,0.00021917,2]
[388824420,1759393848546,-501.47679489,0.00021917,2]
[388824421,1759393848556,-287.70910408,0.00021917,2]
[388824422,1759393848565,-655.69,0.00021917,2]
[388824423,1759393848575,-500.0,0.00021917,2]
[388824424,1759393848584,-500.0,0.00021917,2]
[388824425,1759393848593,-533.17585372,0.00021917,2]
[388824426,1759393848602,-564.55555798,0.00021917,2]